fUSD/lending_fUSD_20241219
["ID","MTS","AMOUNT","RATE_DAILY","PERIOD"]
[346033592,1734642644827,-333.23937066,0.00024547,4]
[346033593,1734642644836,-500.0,0.00024547,4]
[346033594,1734642644846,-500.0,0.00024547,4]
[346033595,1734642644855,-500.0,0.00024547,4]
[346033596,1734642644864,-500.0,0.00024547,4]
[346033597,1734642644873,-500.0,0.00024547,4]
[346033598,1734642644882,-1472.29,0.00024547,4]
[346033599,1734642644891,-220.73044523,0.00024547,4]
[346033600,1734642644900,-500.0,0.00024547,4]
[346033601,1734642644909,-339.93,0.00024547,4]
[346033602,1734642644920,-500.0,0.00024547,4]
[346033603,1734642644929,-500.0,0.00024547,4]
[346033604,1734642644938,-500.0,0.00024547,4]
[346033605,1734642644948,-554.76498,0.00024547,4]
[346033606,1734642644956,-500.0,0.00024547,4]
[346033607,1734642644966,-500.0,0.00024547,4]
[346033608,1734642644980,-500.0,0.00024547,4]
[346033609,1734642644989,-500.0,0.00024547,4]
[346033610,1734642644998,-500.0,0.00024547,4]
[346033611,1734642645008,-156.64953879,0.00024548,2]
[346033612,1734642645017,-3243.26621421,0.00024567,2]
[346033613,1734642645026,-159.99425748,0.00024573,2]
[346033614,1734642645035,-153.0,0.0002459,2]
[346033615,1734642645045,-153.0,0.0002459,2]
[346033616,1734642645054,-153.0,0.0002459,2]
[346033617,1734642645064,-1426.0,0.000246,3]
[346033618,1734642645074,-350.22,0.000246,2]
[346033619,1734642645084,-3491.3103861,0.000246,2]
[346033620,1734642645094,-1500.0,0.000246,8]
[346033621,1734642645107,-1179.9788,0.00024625,2]
[346033622,1734642645116,-150.0,0.00024658,2]
[346033623,1734642645125,-3243.26621421,0.00024678,2]
[346033624,1734642645135,-238.22528,0.00024688,7]
[346033625,1734642645144,-1000.0,0.000247,2]
[346033626,1734642645153,-3491.3103861,0.000247,2]
[346033627,1734642645162,-1500.0,0.000247,9]
[346033628,1734642645172,-150.0,0.00024736,4]
[346033629,1734642645181,-218.0,0.0002475,2]
[346033630,1734642645191,-1163.78779,0.0002475,2]
[346033631,1734642645200,-156.64953879,0.00024767,2]
[346033632,1734642645209,-500.0,0.00024773,4]
[346033633,1734642645220,-500.0,0.00024781,7]
[346033634,1734642645229,-3243.26621421,0.00024789,2]
[346033635,1734642645238,-1272.08,0.000248,2]
[346033636,1734642645248,-3491.3103861,0.000248,2]
[346033637,1734642645257,-2055.0,0.000248,9]
[346033638,1734642645266,-13648.802,0.00024817,2]
[346033639,1734642645275,-154.37,0.00024817,2]
[346033640,1734642645284,-150.0,0.00024817,2]
[346033641,1734642645293,-500.0,0.00024818,4]
[346033642,1734642645303,-500.0,0.00024818,4]
[346033643,1734642645313,-1000.0,0.00024818,5]
[346033644,1734642645322,-500.0,0.00024818,4]
[346033645,1734642645331,-300.47,0.00024818,4]
[346033646,1734642645340,-500.0,0.00024818,4]
[346033647,1734642645349,-500.0,0.0002482,4]
[346033648,1734642645358,-330.96,0.0002482,4]
[346033649,1734642645367,-500.0,0.0002482,4]
[346033650,1734642645376,-500.0,0.0002482,4]
[346033651,1734642645386,-465.24596899,0.0002482,4]
[346033652,1734642645395,-500.0,0.0002482,4]
[346033653,1734642645404,-500.0,0.0002482,4]
[346033654,1734642645413,-500.0,0.0002482,4]
[346033655,1734642645422,-427.38637353,0.0002482,4]
[346033656,1734642645431,-500.0,0.00024821,4]
[346033657,1734642645440,-500.0,0.00024821,4]
[346033658,1734642645449,-500.0,0.00024821,4]
[346033659,1734642645459,-595.43,0.00024821,4]
[346033660,1734642645471,-500.0,0.00024821,4]
[346033661,1734642645480,-1472.29,0.00024821,4]
[346033662,1734642645490,-500.0,0.00024821,4]
[346033663,1734642645499,-500.0,0.00024821,4]
[346033664,1734642645508,-500.0,0.00024821,4]
[346033665,1734642645519,-500.0,0.00024821,4]
[346033666,1734642645528,-500.0,0.00024821,4]
[346033667,1734642645537,-558.86,0.00024821,4]
[346033668,1734642645547,-500.0,0.00024821,4]
[346033669,1734642645556,-500.0,0.00024821,4]
[346033670,1734642645565,-257.02413396,0.00024821,4]
[346033671,1734642645575,-1431.76,0.00024848,2]
[346033672,1734642645584,-2500.0,0.00024874,2]
[346033673,1734642645593,-958.41,0.0002489,3]
[346033674,1734642645605,-500.0,0.00024899,4]
[346033675,1734642645615,-508.11559632,0.00024899,4]
[346033676,1734642645626,-505.15695443,0.00024899,4]
[346033677,1734642645635,-285.79,0.00024899,4]
[346033678,1734642645644,-500.0,0.00024899,4]
[346033679,1734642645653,-500.0,0.00024899,4]
[346033680,1734642645662,-648.25,0.00024899,4]
[346033681,1734642645671,-608.78,0.00024899,4]
[346033682,1734642645680,-500.0,0.00024899,4]
[346033683,1734642645690,-500.0,0.00024899,4]
[346033684,1734642645699,-500.0,0.00024899,4]
[346033685,1734642645708,-500.0,0.00024899,4]
[346033686,1734642645721,-500.0,0.00024899,4]
[346033687,1734642645730,-500.0,0.00024899,4]
[346033688,1734642645739,-500.0,0.00024899,4]
[346033689,1734642645748,-500.0,0.00024899,4]
[346033690,1734642645758,-500.0,0.00024899,4]
[346033691,1734642645767,-500.0,0.00024899,4]
[346033692,1734642645776,-500.0,0.00024899,4]
[346033693,1734642645785,-500.0,0.00024899,4]
[346033694,1734642645794,-500.0,0.00024899,4]
[346033695,1734642645803,-500.0,0.00024899,4]
[346033696,1734642645812,-500.0,0.00024899,4]
[346033697,1734642645820,-377.83356995,0.00024899,4]
[346033698,1734642645829,-500.0,0.00024899,4]
[346033699,1734642645838,-500.0,0.00024899,4]
[346033700,1734642645847,-500.0,0.00024899,4]
[346033701,1734642645856,-500.0,0.00024899,4]
[346033702,1734642645865,-500.0,0.00024899,4]
[346033703,1734642645874,-500.0,0.00024899,4]
[346033704,1734642645883,-500.0,0.00024899,4]
[346033705,1734642645891,-500.0,0.00024899,4]
[346033706,1734642645900,-500.0,0.00024899,4]
[346033707,1734642645909,-500.0,0.00024899,4]
[346033708,1734642645919,-500.0,0.00024899,4]
[346033709,1734642645928,-700.0,0.00024899,4]
[346033710,1734642645937,-500.0,0.00024899,4]
[346033711,1734642645946,-500.0,0.00024899,4]
[346033712,1734642645955,-500.0,0.00024899,4]
[346033713,1734642645964,-549.17,0.00024899,4]
[346033714,1734642645976,-536.24,0.00024899,4]
[346033715,1734642645985,-500.0,0.00024899,4]
[346033716,1734642645995,-500.0,0.00024899,4]
[346033717,1734642646004,-500.0,0.00024899,4]
[346033718,1734642646013,-500.0,0.00024899,4]
[346033719,1734642646022,-500.0,0.00024899,4]
[346033720,1734642646031,-500.0,0.00024899,4]
[346033721,1734642646040,-500.0,0.00024899,4]
[346033722,1734642646049,-500.0,0.00024899,4]
[346033723,1734642646059,-500.0,0.00024899,4]
[346033724,1734642646067,-500.0,0.00024899,4]
[346033725,1734642646077,-500.0,0.00024899,4]
[346033726,1734642646085,-500.0,0.00024899,4]
[346033727,1734642646096,-577.92,0.00024899,4]
[346033728,1734642646108,-500.0,0.00024899,4]
[346033730,1734642646117,-500.0,0.00024899,4]
[346033731,1734642646126,-500.0,0.00024899,4]
[346033732,1734642646135,-1824.69,0.00024899,4]
[346033733,1734642646144,-500.0,0.00024899,4]
[346033734,1734642646153,-732.43,0.00024899,4]
[346033735,1734642646162,-500.0,0.00024899,4]
[346033736,1734642646171,-500.0,0.00024899,4]
[346033737,1734642646182,-960.61,0.00024899,4]
[346033738,1734642646191,-500.0,0.00024899,4]
[346033739,1734642646200,-221.88902956,0.00024899,4]
[346033741,1734642646210,-500.0,0.00024899,4]
[346033742,1734642646223,-500.0,0.00024899,4]
[346033743,1734642646232,-500.0,0.00024899,4]
[346033744,1734642646241,-500.0,0.00024899,4]
[346033745,1734642646252,-500.0,0.00024899,4]
[346033746,1734642646263,-500.0,0.00024899,4]
[346033747,1734642646275,-500.0,0.00024899,4]
[346033748,1734642646287,-490.87,0.00024899,4]
[346033749,1734642646299,-500.0,0.00024899,4]
[346033750,1734642646310,-500.0,0.00024899,4]
[346033751,1734642646321,-500.0,0.00024899,4]
[346033752,1734642646331,-500.0,0.00024899,4]
[346033753,1734642646341,-500.0,0.00024899,4]
[346033754,1734642646353,-696.39,0.00024899,4]
[346033755,1734642646364,-500.0,0.00024899,4]
[346033756,1734642646375,-500.0,0.00024899,4]
[346033757,1734642646386,-500.0,0.00024899,4]
[346033758,1734642646398,-2332.71,0.00024899,4]
[346033759,1734642646410,-500.0,0.00024899,4]
[346033760,1734642646420,-500.0,0.00024899,4]
[346033761,1734642646432,-500.0,0.00024899,4]
[346033762,1734642646443,-500.0,0.00024899,4]
[346033763,1734642646455,-500.0,0.00024899,4]
[346033764,1734642646466,-500.0,0.00024899,4]
[346033765,1734642646478,-500.0,0.00024899,4]
[346033766,1734642646489,-500.0,0.00024899,4]
[346033767,1734642646503,-500.0,0.00024899,4]
[346033768,1734642646514,-500.0,0.00024899,4]
[346033769,1734642646523,-500.0,0.00024899,4]
[346033770,1734642646533,-500.0,0.00024899,4]
[346033771,1734642646545,-510.41,0.00024899,4]
[346033772,1734642646556,-1988.5,0.00024899,4]
[346033773,1734642646567,-500.0,0.00024899,4]
[346033774,1734642646578,-500.0,0.00024899,4]
[346033775,1734642646590,-500.0,0.00024899,4]
[346033776,1734642646603,-500.0,0.00024899,4]
[346033777,1734642646614,-394.0766753,0.00024899,4]
[346033778,1734642646626,-500.0,0.00024899,4]
[346033779,1734642646638,-2027.443,0.000249,2]
[346033782,1734642646650,-1000.0,0.000249,3]
[346033784,1734642646661,-1000.0,0.000249,3]
[346033785,1734642646673,-1000.0,0.000249,3]
[346033786,1734642646683,-1002.0,0.000249,3]
[346033787,1734642646695,-3491.3103861,0.000249,2]
[346033788,1734642646707,-374.04,0.000249,31]
[346033789,1734642646721,-374.04,0.000249,31]
[346033790,1734642646732,-374.04,0.000249,31]
[346033791,1734642646743,-374.04,0.000249,31]
[346033792,1734642646755,-374.04,0.000249,31]
[346033793,1734642646767,-374.04,0.000249,31]
[346033794,1734642646779,-374.04,0.000249,31]
[346033795,1734642646789,-374.04,0.000249,31]
[346033796,1734642646800,-374.04,0.000249,31]
[346033797,1734642646812,-374.04,0.000249,31]
[346033798,1734642646823,-374.04,0.000249,31]
[346033799,1734642646836,-374.04,0.000249,31]
[346033800,1734642646849,-374.04,0.000249,31]
[346033801,1734642646860,-374.04,0.000249,31]
[346033802,1734642646871,-374.04,0.000249,31]
[346033803,1734642646883,-374.04,0.000249,31]
[346033804,1734642646893,-3243.26621421,0.000249,2]
[346033805,1734642646903,-769.63,0.00024904,2]
[346033806,1734642646913,-333.56746404,0.00024973,2]
[346033807,1734642646923,-150.0,0.00024986,4]
[346033808,1734642646934,-271.56648443,0.00024986,4]
[346033809,1734642646945,-1169.08,0.00024986,2]
[346033810,1734642646957,-436.69,0.00024986,2]
[346033811,1734642646971,-436.69,0.00024986,2]
[346033812,1734642646983,-436.69,0.00024986,2]
[346033813,1734642646992,-500.0,0.00024997,4]
[346033814,1734642647002,-500.0,0.00024997,4]
[346033815,1734642647012,-500.0,0.00024997,4]
[346033816,1734642647021,-500.0,0.00024997,4]
[346033817,1734642647031,-500.0,0.00024997,4]
[346033818,1734642647042,-500.0,0.00024997,4]
[346033819,1734642647053,-500.0,0.00024997,4]
[346033820,1734642647064,-444.13,0.00024997,4]
[346033821,1734642647076,-500.0,0.00024997,4]
[346033822,1734642647087,-500.0,0.00024997,2]
[346033823,1734642647102,-500.0,0.00024997,4]
[346033824,1734642647112,-500.0,0.00024997,4]
[346033825,1734642647122,-166.32,0.00024997,4]
[346033826,1734642647133,-455.5113749,0.00024997,4]
[346033827,1734642647144,-500.0,0.00024997,4]
[346033828,1734642647154,-188.44584335,0.00024997,4]
[346033829,1734642647165,-500.0,0.00024997,4]
[346033830,1734642647175,-500.0,0.00024997,4]
[346033831,1734642647186,-500.0,0.00024997,4]
[346033832,1734642647197,-500.0,0.00024997,4]
[346033833,1734642647210,-500.0,0.00024997,4]
[346033834,1734642647224,-500.0,0.00024997,4]
[346033835,1734642647235,-500.0,0.00024997,4]
[346033836,1734642647246,-500.0,0.00024997,4]
[346033837,1734642647256,-500.0,0.00024997,4]
[346033838,1734642647267,-500.0,0.00024997,4]
[346033839,1734642647278,-500.0,0.00024997,4]
[346033840,1734642647288,-500.0,0.00024997,4]
[346033841,1734642647299,-500.0,0.00024997,4]
[346033842,1734642647309,-500.0,0.00024997,4]
[346033843,1734642647320,-500.0,0.00024997,4]
[346033844,1734642647331,-500.0,0.00024997,4]
[346033845,1734642647342,-500.0,0.00024997,4]
[346033846,1734642647353,-500.0,0.00024997,4]
[346033847,1734642647365,-500.0,0.00024997,4]
[346033848,1734642647376,-500.0,0.00024997,4]
[346033849,1734642647387,-327.18,0.00024997,4]
[346033850,1734642647397,-500.0,0.00024997,4]
[346033851,1734642647408,-500.0,0.00024997,4]
[346033852,1734642647419,-500.0,0.00024997,4]
[346033853,1734642647429,-500.0,0.00024997,4]
[346033854,1734642647439,-500.0,0.00024997,4]
[346033855,1734642647449,-704.53,0.00024997,4]
[346033856,1734642647460,-771.99,0.00024997,4]
[346033857,1734642647472,-500.0,0.00024997,4]
[346033858,1734642647482,-8614.71324392,0.00024998,3]
[346033859,1734642647492,-500.0,0.00024998,4]
[346033860,1734642647503,-159.2,0.00024998,4]
[346033861,1734642647513,-500.0,0.00024998,4]
[346033862,1734642647525,-500.0,0.00024998,4]
[346033863,1734642647535,-500.0,0.00024998,4]
[346033864,1734642647546,-27131.0,0.00024999,4]
[346033865,1734642647556,-500.0,0.00024999,2]
[346033866,1734642647566,-7856.0,0.00025,3]
[346033867,1734642647577,-1280.0,0.00025,2]
[346033868,1734642647587,-212539.77176918,0.00025,3]
[346033869,1734642647598,-259.73159323,0.00025,3]
[346033870,1734642647609,-648209.59223413,0.00025,2]
[346033871,1734642647627,-854.55749319,0.00025,2]
[346033872,1734642647694,-1703.38802175,0.00025,2]
[346033873,1734642647708,-1517.98157017,0.00025,2]
[346033874,1734642647722,-2894.54679335,0.00025,2]
[346033875,1734642647735,-8198.20301756,0.00025,2]
[346033876,1734642647748,-635.66833251,0.00025,2]
[346033877,1734642700446,157.21,0.00010137,2]
[346033886,1734643667892,154.29,0.00010137,2]
[346033920,1734643831542,-518.32,0.00021363,2]
[346033921,1734643831551,-3232.99864499,0.00022,2]
[346033922,1734643831562,-719.68076002,0.00022,2]
[346033923,1734643831660,-10065.06644792,0.00022,2]
[346033924,1734643831670,-150.0,0.00022488,4]
[346033925,1734643831679,-150.0,0.00022488,4]
[346033926,1734643831688,-150.0,0.00022488,4]
[346033927,1734643831698,-150.0,0.00022488,4]
[346033928,1734643831707,-150.0,0.00022666,4]
[346033929,1734643831717,-250.0,0.00022673,2]
[346033930,1734643831726,-219.71,0.0002272,2]
[346033931,1734643831734,-1067.31,0.00022739,2]
[346033932,1734643831744,-150.0,0.00022845,4]
[346033933,1734643831753,-348.27171206,0.00023,2]
[346033934,1734643831762,-150.0,0.00023023,4]
[346033935,1734643831772,-150.0,0.00023202,4]
[346033936,1734643831781,-382.1,0.00023262,2]
[346033937,1734643831790,-155.47,0.00023282,2]
[346033938,1734643831800,-155.95,0.00023347,30]
[346033939,1734643831809,-225.05429421,0.0002336,2]
[346033940,1734643831824,-254.46,0.0002336,2]
[346033941,1734643831835,-334.08375,0.0002336,2]
[346033942,1734643831846,-6737.37067668,0.0002336,2]
[346033943,1734643831856,-3094.40080596,0.0002336,2]
[346033963,1734643837398,-11399.08005427,0.0002336,2]
[346033964,1734643837461,-1855.55041888,0.0002336,2]
[346033965,1734643837471,-1500.0,0.00023366,2]
[346033966,1734643837480,-150.0,0.0002338,4]
[346033967,1734643837490,-668.34958112,0.00023387,2]
[346033968,1734643837521,-329.43464116,0.00023387,2]
[346033969,1734643837536,-2.21577772,0.00023387,2]
[346033970,1734643837546,-500.0,0.00023415,7]
[346033971,1734643837554,-2751.0,0.00023471,2]
[346033972,1734643837563,-175.58422228,0.00023528,2]
[346033973,1734643837574,-74.41577772,0.00023528,2]
[346033974,1734643837583,-595.84,0.00023547,2]
[346033975,1734643837592,-150.0,0.00023559,4]
[346033976,1734643837601,-200.0,0.0002359,2]
[346033977,1734643837611,-518.32,0.00023627,2]
[346033978,1734643837620,-375.16776597,0.00023639,2]
[346033979,1734643837631,-979.1288859,0.00023639,2]
[346033980,1734643837645,-758.18630788,0.00023639,2]
[346033981,1734643837703,-1072.35,0.00023639,2]
[346033982,1734643837715,-3082.21704025,0.00023639,2]
[346033983,1734643837724,-500.0,0.00023689,7]
[346033984,1734643837732,-150.0,0.00023737,4]
[346033985,1734643837741,-250.0,0.00023746,2]
[346033986,1734643837750,-424.73,0.0002375,2]
[346033987,1734643837759,-199.775382,0.00023836,2]
[346033988,1734643837769,-185.71,0.00023841,2]
[346033989,1734643837780,-194.76166825,0.000239,2]
[346033990,1734643837789,-150.0,0.00023915,4]
[346033991,1734643837798,-178.35,0.00023962,5]
[346033992,1734643837808,-500.0,0.00023962,7]
[346033993,1734643837817,-1238.289,0.00023962,5]
[346033995,1734643837826,-151.28,0.0002399,2]
[346033997,1734643837835,-500.0,0.00023999,4]
[346033998,1734643837843,-527.20750504,0.00023999,4]
[346033999,1734643837852,-500.0,0.00023999,4]
[346034000,1734643837861,-500.0,0.00023999,4]
[346034001,1734643837870,-500.0,0.00023999,4]
[346034002,1734643837880,-500.0,0.00023999,4]
[346034003,1734643837888,-500.0,0.00023999,4]
[346034004,1734643837898,-500.0,0.00023999,4]
[346034005,1734643837907,-500.0,0.00023999,4]
[346034007,1734643837916,-500.0,0.00023999,4]
[346034009,1734643837925,-500.0,0.00023999,4]
[346034011,1734643837935,-500.0,0.00023999,4]
[346034013,1734643837945,-500.0,0.00023999,4]
[346034015,1734643837954,-1000.0,0.00023999,5]
[346034017,1734643837963,-500.0,0.00023999,4]
[346034019,1734643837972,-500.0,0.00023999,4]
[346034021,1734643837981,-500.0,0.00023999,4]
[346034023,1734643837990,-500.0,0.00023999,4]
[346034025,1734643837999,-500.0,0.00023999,4]
[346034027,1734643838008,-500.0,0.00023999,4]
[346034029,1734643838018,-500.0,0.00023999,2]
[346034031,1734643838029,-500.0,0.00023999,4]
[346034033,1734643838038,-500.0,0.00023999,4]
[346034035,1734643838047,-500.0,0.00023999,4]
[346034037,1734643838056,-500.0,0.00023999,4]
[346034039,1734643838065,-500.0,0.00023999,4]
[346034040,1734643838074,-500.0,0.00023999,4]
[346034042,1734643838083,-500.0,0.00023999,4]
[346034044,1734643838092,-500.0,0.00023999,2]
[346034045,1734643838101,-500.0,0.00023999,4]
[346034046,1734643838111,-500.0,0.00023999,4]
[346034047,1734643838120,-500.0,0.00023999,4]
[346034048,1734643838129,-500.0,0.00023999,4]
[346034049,1734643838139,-500.0,0.00023999,4]
[346034050,1734643838148,-500.0,0.00023999,4]
[346034051,1734643838157,-500.0,0.00023999,4]
[346034052,1734643838166,-500.0,0.00023999,4]
[346034053,1734643838175,-500.0,0.00023999,4]
[346034054,1734643838184,-500.0,0.00023999,4]
[346034055,1734643838193,-620.61,0.00023999,4]
[346034056,1734643838202,-500.0,0.00023999,4]
[346034057,1734643838212,-500.0,0.00023999,4]
[346034058,1734643838221,-500.0,0.00023999,4]
[346034059,1734643838230,-500.0,0.00023999,4]
[346034060,1734643838240,-500.0,0.00023999,4]
[346034061,1734643838249,-500.0,0.00023999,4]
[346034062,1734643838258,-500.0,0.00023999,4]
[346034063,1734643838267,-500.0,0.00023999,4]
[346034064,1734643838278,-500.0,0.00023999,4]
[346034065,1734643838287,-500.0,0.00023999,4]
[346034066,1734643838296,-500.0,0.00023999,4]
[346034067,1734643838306,-500.0,0.00023999,4]
[346034068,1734643838316,-500.0,0.00023999,4]
[346034069,1734643838326,-500.0,0.00023999,4]
[346034070,1734643838335,-500.0,0.00023999,4]
[346034071,1734643838345,-500.0,0.00023999,4]
[346034072,1734643838354,-500.0,0.00023999,4]
[346034073,1734643838363,-500.0,0.00023999,4]
[346034074,1734643838373,-500.0,0.00023999,4]
[346034075,1734643838383,-500.0,0.00023999,4]
[346034076,1734643838392,-500.0,0.00023999,4]
[346034077,1734643838402,-232.93368229,0.00023999,4]
[346034078,1734643838419,-8.52631771,0.00023999,4]
[346034079,1734643838428,-500.0,0.00023999,4]
[346034080,1734643838437,-500.0,0.00023999,4]
[346034081,1734643838448,-500.0,0.00023999,4]
[346034082,1734643838459,-500.0,0.00023999,4]
[346034083,1734643838468,-500.0,0.00023999,4]
[346034084,1734643838477,-500.0,0.00023999,4]
[346034085,1734643838487,-500.0,0.00023999,4]
[346034086,1734643838497,-500.0,0.00023999,4]
[346034087,1734643838507,-1964.99,0.00023999,4]
[346034088,1734643838517,-500.0,0.00023999,4]
[346034089,1734643838529,-500.0,0.00023999,4]
[346034090,1734643838539,-500.0,0.00023999,4]
[346034091,1734643838547,-500.0,0.00023999,4]
[346034092,1734643838556,-500.0,0.00023999,4]
[346034093,1734643838566,-500.0,0.00023999,4]
[346034094,1734643838575,-500.0,0.00023999,4]
[346034095,1734643838584,-500.0,0.00023999,4]
[346034096,1734643838593,-500.0,0.00023999,4]
[346034097,1734643838602,-500.0,0.00023999,4]
[346034098,1734643838611,-500.0,0.00023999,4]
[346034099,1734643838620,-500.0,0.00023999,4]
[346034100,1734643838629,-500.0,0.00023999,4]
[346034101,1734643838638,-576.61829911,0.00023999,4]
[346034102,1734643838647,-500.0,0.00023999,4]
[346034103,1734643838656,-290.81,0.00023999,4]
[346034104,1734643838665,-500.0,0.00023999,4]
[346034105,1734643838674,-500.0,0.00023999,4]
[346034106,1734643838683,-500.0,0.00023999,4]
[346034107,1734643838692,-500.0,0.00023999,4]
[346034108,1734643838702,-290.73906339,0.00023999,4]
[346034109,1734643838713,-240.00093661,0.00023999,4]
[346034110,1734643838722,-259.99906339,0.00024,3]
[346034121,1734643839556,-342.267,0.00024,3]
[346034122,1734643839618,-77550.45940723,0.00024,3]
[346034123,1734643839629,-121791.30887894,0.00024,3]
[346034124,1734643839641,-59236.4999796,0.00024,3]
[346034125,1734643839652,-95623.0,0.00024,3]
[346034126,1734643839663,-622.15970335,0.00024,3]
[346034127,1734643839680,-980.57675,0.00024,3]
[346034128,1734643839691,-27424.4315218,0.00024,3]
[346034129,1734643839856,-58674.45299336,0.00024,3]
[346034130,1734643839919,-1025.91774,0.00024,3]
[346034160,1734643842537,-500.0,0.00023999,4]
[346034161,1734643842546,-2426.8,0.00024,3]
[346034162,1734643842596,-500.0,0.00023999,4]
[346034163,1734643842605,-13191.84,0.00024,3]
[346034164,1734643842825,-1915.11456176,0.00024,3]
[346034165,1734643842835,-259.73159323,0.00024,3]
[346034166,1734643842844,-2675.70384501,0.00024,2]
[346034200,1734643845516,-394.4941,0.00023999,4]
[346034201,1734643845531,-105.5059,0.00023999,4]
[346034202,1734643845541,-500.0,0.00023999,4]
[346034203,1734643845551,-2324.57513796,0.00024,2]
[346034204,1734643845560,-2055.0,0.00024,3]
[346034205,1734643845569,-1544.42314606,0.00024,2]
[346034206,1734643845581,-1522.9792,0.00024,2]
[346034207,1734643845766,-2167.114,0.00024,2]
[346034208,1734643845829,-751.86903138,0.00024,2]
[346034236,1734644668377,500.0,0.00023,120]
[346034252,1734645032249,-466.48,0.00021054,2]
[346034253,1734645032258,-500.0,0.00021164,2]
[346034254,1734645032268,-500.0,0.00021164,2]
[346034255,1734645032278,-150.0,0.000216,4]
[346034256,1734645032287,-150.0,0.0002208,4]
[346034257,1734645032297,-150.0,0.0002256,4]
[346034258,1734645032306,-793.48,0.00022684,2]
[346034259,1734645032315,-300.0,0.0002297,2]
[346034260,1734645032324,-455.49411024,0.00022971,2]
[346034261,1734645032365,-336.5862505,0.00022971,2]
[346034262,1734645032377,-207.91963926,0.00022971,2]
[346034263,1734645032387,-250.0,0.00022971,2]
[346034264,1734645032396,-313.67,0.00022971,2]
[346034265,1734645032405,-219.71,0.00022971,2]
[346034266,1734645032414,-150.0,0.0002304,4]
[346034267,1734645032423,-555.11108555,0.00023061,2]
[346034268,1734645032434,-453.94891445,0.00023061,2]
[346034269,1734645032443,-218.53665,0.00023088,7]
[346034270,1734645032453,-372.28,0.00023107,2]
[346034271,1734645032462,-723.32,0.00023198,2]
[346034272,1734645032471,-150.0,0.00023233,2]
[346034273,1734645032481,-155.47,0.00023262,2]
[346034274,1734645032491,-124.44443555,0.00023264,30]
[346034282,1734645037604,-31.50556445,0.00023264,30]
[346034284,1734645037613,-218.53665,0.00023288,7]
[346034285,1734645037622,-466.48,0.00023318,2]
[346034286,1734645037631,-218.53665,0.00023488,7]
[346034287,1734645037640,-700.0,0.000235,8]
[346034288,1734645037649,-163.45258528,0.00023507,2]
[346034289,1734645037659,-150.0,0.0002352,4]
[346034290,1734645037667,-1500.0,0.000236,8]
[346034291,1734645037676,-163.45258528,0.00023644,2]
[346034292,1734645037685,-218.53665,0.00023688,7]
[346034293,1734645037694,-152.0,0.00023694,3]
[346034294,1734645037703,-2300.0,0.000237,8]
[346034295,1734645037712,-442.543,0.0002375,2]
[346034296,1734645037721,-163.45258528,0.00023753,2]
[346034297,1734645037730,-565.0,0.000238,120]
[346034298,1734645037739,-3000.0,0.000238,8]
[346034299,1734645037748,-163.45258528,0.0002389,2]